bitfinex-derivatives/quotes_SOLF0:USTF0_20250411
["timestamp","ask_amount","ask_price","bid_price","bid_amount"]
[1744400922215,18.60997455,120.49,120.48,38.8715002]
[1744400922418,18.60997455,120.49,120.48,0.0632714]
[1744400922912,10.30657455,120.49,120.43,2.2905]
[1744400923112,10.30657455,120.47,120.42,14.69597455]
[1744400923312,41.92657455,120.47,120.42,14.69597455]
[1744400924016,0.05764796,120.46,120.43,0.06054298]
[1744400924318,8.36344796,120.46,120.43,8.36804298]
[1744400924713,0.05764796,120.46,120.45,10.30657455]
[1744400924918,39.923,120.5,120.45,10.30657455]
[1744400925116,39.923,120.5,120.46,10.30657455]
[1744400925320,31.62,120.5,120.47,10.30657455]
[1744400925514,31.62,120.5,120.48,8.3039]
[1744400925721,31.62,120.5,120.47,10.30657455]
[1744400926020,31.68299821,120.5,120.47,18.66871461]
[1744400926922,31.68299821,120.5,120.48,8.304]
[1744400929424,31.68299821,120.5,120.49,8.3034]
[1744400930126,31.68299821,120.5,120.48,8.3037]
[1744400931520,31.68299821,120.5,120.49,8.3034]
[1744400932126,31.68299821,120.5,120.48,8.3037]
[1744400932521,31.68299821,120.5,120.47,0.05794006]
[1744400932827,31.68299821,120.5,120.48,8.3041]
[1744400934325,31.68299821,120.5,120.49,8.3034]
[1744400935727,0.06299821,120.5,120.49,8.3034]
[1744400938535,8.2991,120.56,120.48,36.49617474]
[1744400938736,39.9391,120.56,120.52,16.12453737]
[1744400939033,31.64,120.56,120.52,16.12453737]
[1744400939637,0.06237447,120.55,120.53,0.05827027]
[1744400941237,0.06237447,120.55,120.54,8.2999]
[1744400941534,0.06237447,120.55,120.54,24.42443737]
[1744400942435,0.06237447,120.55,120.54,8.2999]
[1744400945235,0.06237447,120.55,120.54,24.42443737]
[1744400947344,0.06237447,120.55,120.54,8.2999]
[1744400948939,0.06237447,120.55,120.53,8.35857027]
[1744400949143,0.06237447,120.55,120.53,0.05827027]
[1744400949639,0.06237447,120.55,120.53,10.36762237]
[1744400949844,0.06237447,120.55,120.54,10.3093521]
[1744400950447,0.06237447,120.55,120.54,18.6092521]
[1744400953446,31.6,120.59,120.58,8.2972]
[1744400956152,6.7187,120.65,120.58,10.3093521]
[1744400956352,31.6,120.65,120.61,10.3093521]
[1744400956645,8.2938,120.63,120.59,10.3093521]
[1744400956849,8.2938,120.63,120.6,8.2954]
[1744400957243,8.2938,120.63,120.59,10.3093521]
[1744400957443,18.6027521,120.64,120.61,8.2945]
[1744400957745,18.6027521,120.64,120.59,10.3093521]
[1744400957945,18.6027521,120.64,120.61,8.2948]
[1744400958149,10.3093521,120.64,120.59,10.3093521]
[1744400958352,10.3093521,120.63,120.58,10.3093521]
[1744400958549,31.6,120.62,120.58,10.3093521]
[1744400958750,39.8947,120.62,120.59,8.296]
[1744400959452,39.8947,120.62,120.6,8.2957]
[1744400959749,39.8947,120.62,120.58,10.3093521]
[1744400959945,39.8947,120.62,120.59,8.2961]
[1744400960647,8.2953,120.61,120.58,18.6061521]
[1744400960951,10.3093521,120.61,120.56,10.3093521]
[1744400961251,8.2962,120.6,120.57,8.2973]
[1744400961452,8.2962,120.6,120.56,10.3093521]
[1744400961646,41.9093521,120.62,120.56,10.3093521]
[1744400961849,8.2955,120.61,120.58,8.2965]
[1744400962054,41.9093521,120.62,120.58,8.2965]
[1744400962354,8.2959,120.6,120.57,18.6068521]
[1744400962553,10.3093521,120.61,120.57,8.2975]
[1744400962849,8.2964,120.6,120.57,8.2975]
[1744400963054,8.2964,120.6,120.58,8.2971]
[1744400963554,8.2964,120.6,120.57,8.2975]
[1744400964653,8.2964,120.6,120.58,8.297]
[1744400965053,8.2954,120.61,120.58,8.297]
[1744400965253,41.9093521,120.62,120.58,10.3093521]
[1744400965254,31.6,120.62,120.58,10.3093521]
[1744400965455,31.6,120.62,120.59,10.3093521]
[1744400965753,39.8945,120.62,120.58,10.3093521]
[1744400965954,31.6,120.62,120.58,10.3093521]
[1744400966853,8.2956,120.61,120.59,8.2962]
[1744400967054,41.9093521,120.62,120.57,10.36333368]
[1744400967455,8.2957,120.61,120.58,8.2968]
[1744400967658,8.35509388,120.61,120.58,8.2968]
[1744400968455,8.35509388,120.61,120.59,8.2965]
[1744400968645,8.35509388,120.61,120.57,10.36333368]
[1744400969156,8.35509388,120.61,120.58,8.2968]
[1744400969350,8.35509388,120.61,120.57,0.05398158]
[1744400969544,8.35509388,120.61,120.58,10.3093521]
[1744400969749,8.35509388,120.61,120.59,8.2962]
[1744400969951,8.35509388,120.61,120.58,10.3093521]
[1744400970352,8.2961,120.6,120.58,8.2969]
[1744400970658,0.05939388,120.61,120.57,0.05398158]
[1744400970856,31.6,120.59,120.57,0.05398158]
[1744400971458,31.6,120.59,120.57,8.35148158]
[1744400971860,39.8966,120.59,120.57,8.35148158]
[1744400972259,31.6,120.59,120.57,8.35148158]
[1744400973358,31.6,120.59,120.58,8.2972]
[1744400973752,31.6,120.59,120.57,0.05398158]
[1744400973956,39.8967,120.59,120.57,8.35148158]
[1744400975759,8.2972,120.58,120.57,0.05398158]
[1744400978461,31.6,120.59,120.57,0.05398158]
[1744400980267,31.6,120.59,120.58,8.2972]
[1744400982171,31.6,120.59,120.57,8.35138158]
[1744400982972,39.8966,120.59,120.57,8.35138158]
[1744400983571,8.2972,120.58,120.57,0.05398158]
[1744400992477,39.8969,120.59,120.57,8.35188158]
[1744400992975,31.6,120.59,120.57,0.05398158]
[1744400993580,8.2972,120.58,120.57,0.05398158]
[1744400994581,39.8969,120.59,120.57,8.35188158]
[1744400995078,39.8969,120.59,120.57,0.05398158]
[1744400995079,31.6,120.59,120.57,0.05398158]
[1744400995281,8.2972,120.58,120.57,0.05398158]
[1744400996683,31.6,120.59,120.57,0.05398158]
[1744400996684,39.8968,120.59,120.57,8.35188158]
[1744400997580,31.6,120.59,120.58,8.2972]
[1744400997878,31.6,120.59,120.57,0.05398158]
[1744400998086,31.6,120.59,120.58,10.3093521]
[1744400998285,0.05939388,120.61,120.58,10.3093521]
[1744400998485,0.05939388,120.61,120.6,10.3093521]
[1744400998790,0.05939388,120.61,120.6,18.6051521]
[1744400999391,0.05939388,120.61,120.6,22.09889174]
[1744400999893,0.05939388,120.61,120.6,11.78953964]
[1744401000291,29.40735424,120.71,120.6,13.80309174]
[1744401000491,39.71670634,120.71,120.66,18.6009521]
[1744401000689,8.2896,120.7,120.67,3.48759535]
[1744401000894,8.2896,120.7,120.66,10.3093521]
[1744401001095,39.71670634,120.71,120.67,3.4879161]
[1744401001295,8.2896,120.69,120.61,33.8105]
[1744401001595,10.3093521,120.68,120.63,10.3093521]
[1744401001795,10.3093521,120.65,120.64,0.05437222]
[1744401001995,41.8893521,120.65,120.64,0.05437222]
[1744401002291,31.58,120.65,120.64,0.05437222]
[1744401002494,10.3093521,120.69,120.64,13.84959857]
[1744401002696,60.98735424,120.71,120.65,10.3093521]
[1744401002898,8.29,120.69,120.65,10.3093521]
[1744401003097,41.8893521,120.68,120.67,0.06099216]
[1744401003395,8.2913,120.67,120.66,0.05697255]
[1744401004400,50.1799521,120.68,120.66,0.05697255]
[1744401004698,31.58,120.68,120.67,8.291]
[1744401005095,31.56,120.71,120.66,10.36632465]
[1744401005293,31.56,120.71,120.66,0.05697255]
[1744401005497,31.56,120.71,120.67,10.3093521]
[1744401005692,39.8486,120.71,120.68,8.2899]
[1744401006701,39.8486,120.71,120.68,70.2899]
[1744401008502,8.2892,120.7,120.67,8.2907]
[1744401008698,31.56,120.71,120.66,0.05697255]
[1744401008999,10.3093521,120.7,120.66,0.05697255]
[1744401009702,8.29,120.69,120.66,8.34827255]
[1744401011007,8.2904,120.68,120.66,8.34827255]
[1744401011509,39.8504,120.68,120.66,8.34827255]
[1744401011804,31.56,120.68,120.66,0.05697255]
[1744401012307,39.8507,120.68,120.66,0.05697255]
[1744401013705,8.291,120.67,120.66,0.05697255]
[1744401014004,18.6003521,120.67,120.66,0.05697255]
[1744401015408,8.291,120.67,120.66,0.05697255]
[1744401018814,18.6003521,120.67,120.66,0.05697255]
[1744401019317,8.2929,120.65,120.62,20.8516521]
[1744401019513,31.56,120.65,120.62,20.8516521]
[1744401020013,39.853,120.65,120.62,20.8516521]
[1744401020312,31.56,120.65,120.62,20.8516521]
[1744401020611,31.61665988,120.65,120.62,20.90610305]
[1744401020812,8.2931,120.64,120.62,20.90610305]
[1744401021313,31.61665988,120.65,120.62,10.36380305]
[1744401022717,8.2935,120.64,120.62,10.36380305]
[1744401023018,31.61665988,120.65,120.62,10.36380305]
[1744401023218,41.92601198,120.65,120.62,0.05445095]
[1744401023914,8.2937,120.63,120.62,0.05445095]
[1744401025619,8.2961,120.6,120.58,8.2968]
[1744401025917,31.56,120.61,120.58,18.6061521]
[1744401026115,31.56,120.61,120.59,10.3093521]
[1744401026317,39.8556,120.61,120.58,18.6061521]
[1744401026517,31.56,120.61,120.59,18.6057521]
[1744401026718,31.62095892,120.61,120.59,18.65920699]
[1744401027019,31.62095892,120.61,120.59,0.05345489]
[1744401027519,39.91645892,120.61,120.59,0.05345489]
[1744401027716,31.62095892,120.61,120.59,0.05345489]
[1744401028114,8.2958,120.6,120.59,0.05345489]
[1744401032823,41.93031102,120.61,120.54,23.0257521]
[1744401033120,10.3093521,120.59,120.54,23.0257521]
[1744401033321,31.56,120.58,120.54,2.2714]
[1744401033527,8.2987,120.56,120.54,12.5807521]
[1744401033730,8.2987,120.56,120.54,10.3093521]
[1744401034023,8.35424579,120.56,120.54,0.05288748]
[1744401037028,8.2992,120.55,120.54,0.05288748]
[1744401037222,39.8592,120.55,120.54,0.05288748]
[1744401038126,31.56,120.55,120.54,0.05288748]
[1744401038519,0.05554579,120.56,120.54,10.36223958]
[1744401038714,0.05554579,120.56,120.55,18.6085521]
[1744401040328,0.05554579,120.56,120.55,8.2992]
[1744401041927,31.56,120.64,120.55,22.08879747]
[1744401042132,41.8693521,120.64,120.59,10.3093521]
[1744401042430,8.2948,120.62,120.59,18.6052521]
[1744401042826,41.8693521,120.64,120.59,10.3093521]
[1744401043033,0.05932277,120.62,120.6,8.2955]
[1744401043533,8.35382277,120.62,120.6,8.2955]
[1744401043734,0.05932277,120.62,120.6,8.2955]
[1744401044739,0.05932277,120.62,120.59,10.36488169]
[1744401044941,0.05932277,120.62,120.6,10.3093521]
[1744401046339,0.05932277,120.62,120.6,18.6048521]
[1744401049742,0.05932277,120.62,120.61,8.2951]
[1744401052846,0.05932277,120.62,120.61,18.6044521]
[1744401053040,0.05932277,120.62,120.61,8.2951]
[1744401057359,0.05932277,120.62,120.61,18.6044521]
[1744401058249,0.05932277,120.62,120.61,22.09457444]
[1744401059056,0.05932277,120.62,120.61,18.6044521]
[1744401060156,0.05932277,120.62,120.61,22.09904091]
[1744401061355,31.56,120.64,120.61,13.80394091]
[1744401061658,8.292,120.66,120.63,10.3093521]
[1744401061847,8.292,120.66,120.64,8.293]
[1744401062251,8.292,120.66,120.62,10.3093521]
[1744401062461,8.34200983,120.66,120.64,0.05464]
[1744401063357,8.34200983,120.66,120.64,8.34764]
[1744401064460,8.34200983,120.66,120.64,0.05464]
[1744401064860,8.2924,120.65,120.64,0.05464]
[1744401065157,0.05000983,120.66,120.64,0.05464]
[1744401065662,10.35936193,120.66,120.64,0.05464]
[1744401066860,8.2924,120.65,120.64,0.05464]
[1744401068055,8.34210983,120.66,120.64,0.05464]
[1744401068561,8.2924,120.65,120.64,0.05464]
[1744401068960,0.05000983,120.66,120.64,0.05464]
[1744401069155,8.34200983,120.66,120.64,8.34764]
[1744401069356,8.34200983,120.66,120.64,0.05464]
[1744401069656,0.05000983,120.66,120.64,0.05464]
[1744401069950,31.59000983,120.66,120.64,0.05464]
[1744401070261,8.2924,120.65,120.64,0.05464]
[1744401070863,39.88200983,120.66,120.64,0.05464]
[1744401072165,8.2924,120.65,120.64,0.05464]
[1744401072967,39.88210983,120.66,120.64,0.05464]
[1744401076062,8.2924,120.65,120.64,0.05464]
[1744401077065,39.88200983,120.66,120.64,0.05464]
[1744401077765,31.59000983,120.66,120.64,0.05464]
[1744401079366,39.88220983,120.66,120.64,0.05464]
[1744401079969,31.59000983,120.66,120.64,10.3639921]
[1744401080668,31.59000983,120.66,120.65,10.3093521]
[1744401080870,0.05000983,120.66,120.64,10.3639921]
[1744401081070,0.05000983,120.66,120.65,8.2924]
[1744401081472,0.05000983,120.66,120.65,11.78750327]
[1744401081969,0.05000983,120.66,120.65,22.09685537]
[1744401082183,31.54,120.69,120.68,8.2903]
[1744401083177,31.54,120.69,120.67,80.6570451]
[1744401083477,31.54,120.69,120.67,70.347693]
[1744401083668,39.8298,120.69,120.67,70.347693]
[1744401084579,31.54,120.69,120.67,70.347693]
[1744401087577,31.54,120.69,120.67,8.347693]
[1744401091876,39.8297,120.69,120.67,8.347693]
[1744401092382,31.54,120.69,120.67,0.057093]
[1744401093581,41.8493521,120.69,120.67,0.057093]
[1744401093782,8.2903,120.68,120.67,0.057093]
[1744401093978,31.54,120.69,120.67,0.057093]
[1744401094780,31.54,120.69,120.67,8.347393]
[1744401095078,31.54,120.69,120.67,18.6567451]
[1744401095382,31.54,120.69,120.68,11.78769006]
[1744401095584,8.2885,120.71,120.68,13.80674216]
[1744401095785,8.2885,120.71,120.68,10.3093521]
[1744401095977,8.2885,120.71,120.69,8.2895]
[1744401096178,8.2885,120.71,120.68,10.3093521]
[1744401096486,8.2885,120.71,120.68,18.5992521]
[1744401096884,8.2892,120.7,120.68,18.5992521]
[1744401097287,31.52,120.72,120.68,18.5992521]
[1744401097487,8.2886,120.71,120.69,8.2895]
[1744401097685,8.2886,120.71,120.68,10.3093521]
[1744401097988,8.2886,120.71,120.68,18.5993521]
[1744401098790,8.2889,120.7,120.68,18.5993521]
[1744401099088,31.52,120.72,120.68,8.29]
[1744401099389,8.2886,120.71,120.68,8.29]
[1744401100290,31.52,120.72,120.68,8.29]
[1744401100488,31.52,120.72,120.67,10.3664451]
[1744401100684,31.52,120.72,120.68,3.49565898]
[1744401100880,8.2887,120.71,120.67,10.3664451]
[1744401101084,8.2887,120.71,120.68,11.78564053]
[1744401101286,8.2887,120.71,120.67,10.3664451]
[1744401101483,8.2887,120.71,120.68,13.80494156]
[1744401101679,8.2887,120.71,120.68,10.3093521]
[1744401101984,31.52,120.72,120.69,13.8046357]
[1744401101985,39.808,120.72,120.69,13.8046357]
[1744401102189,39.808,120.72,120.69,18.5985521]
[1744401102990,31.52,120.72,120.69,10.3093521]
[1744401103179,31.52,120.72,120.7,13.80347226]
[1744401103384,31.52,120.72,120.7,10.37098416]
[1744401103581,31.52,120.72,120.71,8.2882]
[1744401103791,31.52,120.72,120.7,10.37098416]
[1744401104093,39.8076,120.72,120.7,18.65948416]
[1744401105091,31.52,120.72,120.7,18.65948416]
[1744401106795,39.8078,120.72,120.7,18.65948416]
[1744401107694,39.8078,120.72,120.7,0.06163206]
[1744401108294,39.8078,120.72,120.7,8.35053206]
[1744401109593,8.2882,120.71,120.7,0.06163206]
[1744401110692,10.3093521,120.71,120.66,10.3093521]
[1744401110990,41.8293521,120.72,120.67,22.0900347]
[1744401111190,8.2893,120.7,120.67,18.5999521]
[1744401111388,8.2893,120.7,120.68,3.49028536]
[1744401111589,31.52,120.72,120.69,10.3093521]
[1744401111790,0.05293633,120.7,120.69,10.3093521]
[1744401111987,0.05293633,120.7,120.69,13.79823663]
[1744401112191,0.05293633,120.7,120.69,22.08783663]
[1744401112587,0.05293633,120.7,120.69,18.5989521]
[1744401113597,0.05293633,120.7,120.69,8.2896]
[1744401114100,0.05293633,120.7,120.69,11.77961542]
[1744401114296,0.05293633,120.7,120.69,8.2896]
[1744401114801,0.05293633,120.7,120.68,18.66235922]
[1744401115100,8.34243633,120.7,120.68,0.06310712]
[1744401115601,8.34243633,120.7,120.68,8.35340712]
[1744401116004,8.34243633,120.7,120.68,0.06310712]
[1744401116803,8.34243633,120.7,120.68,8.35320712]
[1744401117805,0.05293633,120.7,120.68,18.66255922]
[1744401118005,0.05293633,120.7,120.69,8.2896]
[1744401120010,0.05293633,120.7,120.69,11.78254249]
[1744401120410,8.34183633,120.7,120.68,8.35300712]
[1744401120610,0.05293633,120.7,120.68,8.35300712]
[1744401121013,0.05293633,120.7,120.69,8.2896]
[1744401121613,0.05293633,120.7,120.69,18.5989521]
[1744401121813,0.05293633,120.7,120.69,22.09361631]
[1744401124419,0.05293633,120.7,120.69,22.09928825]
[1744401129322,0.05293633,120.7,120.69,22.1007158]
[1744401130421,31.48,120.76,120.72,8.2871]
[1744401130816,8.2861,120.75,120.72,8.2871]
[1744401131016,8.2861,120.75,120.73,3.50040614]
[1744401131213,8.2861,120.75,120.72,8.2871]
[1744401131417,8.2861,120.75,120.73,3.5623524]
[1744401131616,10.3093521,120.74,120.73,0.06236895]
[1744401132018,18.5955521,120.74,120.73,0.06236895]
[1744401133130,8.2862,120.74,120.73,0.06236895]
[1744401133820,8.2874,120.73,120.7,8.2887]
[1744401134024,10.3093521,120.74,120.71,3.50130261]
[1744401134330,8.288,120.72,120.69,18.5986521]
[1744401134520,8.288,120.72,120.7,3.50369406]
[1744401134724,8.288,120.72,120.71,3.50369406]
[1744401135023,8.34437459,120.72,120.71,3.50369406]
[1744401138632,8.2882,120.71,120.7,0.0555886]
[1744401138832,8.2882,120.71,120.7,3.56405787]
[1744401139228,8.2913,120.67,120.61,11.10186399]
[1744401139427,39.7713,120.67,120.63,10.3093521]
[1744401139633,39.7713,120.67,120.64,11.80340978]
[1744401139831,31.48,120.67,120.65,3.51090978]
[1744401140131,31.48,120.67,120.66,3.51090978]
[1744401142132,39.771,120.67,120.65,0.05497167]
[1744401145125,31.48,120.67,120.65,8.34697167]
[1744401145331,31.48,120.67,120.65,0.05497167]
[1744401145536,39.7717,120.67,120.65,0.05497167]
[1744401145938,31.48,120.67,120.65,0.05497167]
[1744401146136,39.7714,120.67,120.65,0.05497167]
[1744401146338,31.48,120.67,120.65,0.05497167]
[1744401147440,10.3093521,120.66,120.61,12.4695521]
[1744401147739,10.3093521,120.66,120.62,3.50680819]
[1744401147938,10.3093521,120.66,120.61,10.3093521]
[1744401148142,10.3093521,120.66,120.62,3.50669953]
[1744401148443,8.2922,120.66,120.63,11.80039953]
[1744401148735,0.06303164,120.65,120.63,0.0606089]
[1744401148938,0.06303164,120.65,120.64,10.3093521]
[1744401149140,0.06303164,120.65,120.64,18.6024521]
[1744401149439,0.06303164,120.65,120.63,10.369961]
[1744401149940,0.06303164,120.65,120.64,8.2931]
[1744401150242,0.06303164,120.65,120.64,11.79760508]
[1744401152747,0.06303164,120.65,120.64,3.50450508]
[1744401153245,8.35543164,120.65,120.63,0.0606089]
[1744401154243,0.06303164,120.65,120.63,8.3543089]
[1744401154844,8.35553164,120.65,120.63,8.3543089]
[1744401156058,0.06303164,120.65,120.64,8.2931]
[1744401156539,0.06303164,120.65,120.64,22.10373811]
[1744401158043,0.06303164,120.65,120.64,84.10373811]
[1744401158444,0.06303164,120.65,120.64,84.10319625]
[1744401158846,0.06303164,120.65,120.64,73.79384415]
[1744401160445,0.06303164,120.65,120.64,73.79244987]
[1744401163753,0.06303164,120.65,120.64,84.10180197]
[1744401165146,10.3093521,120.69,120.66,8.2916]
[1744401165346,638.5293521,120.7,120.66,8.2916]
[1744401165548,8.2902,120.69,120.66,8.2916]
[1744401165753,638.5293521,120.7,120.66,8.2916]
[1744401166157,8.2903,120.68,120.67,0.06361952]
[1744401168252,8.2903,120.68,120.67,62.06361952]
[1744401173058,8.2903,120.68,120.67,0.06361952]
[1744401173261,18.5996521,120.68,120.67,0.06361952]
[1744401173452,8.2922,120.66,120.63,2.1765]
[1744401173658,31.48,120.66,120.62,18.6034521]
[1744401173856,31.48,120.66,120.63,3.50510401]
[1744401174057,8.2929,120.65,120.62,8.2941]
[1744401174565,8.34835861,120.65,120.62,8.35451578]
[1744401175364,8.34835861,120.65,120.62,18.66386788]
[1744401175661,8.34835861,120.65,120.63,8.2937]
[1744401175869,0.05545861,120.65,120.63,8.2937]
[1744401176068,0.05545861,120.65,120.64,62.0]
[1744401177362,8.34785861,120.65,120.64,62.0]
[1744401179664,0.05545861,120.65,120.64,62.0]
[1744401179966,0.05545861,120.65,120.64,65.50886073]
[1744401180267,0.05545861,120.65,120.64,65.50990464]
[1744401180469,8.34785861,120.65,120.64,65.50990464]
[1744401181268,8.34785861,120.65,120.64,3.50990464]
[1744401183675,10.36481071,120.65,120.62,0.06041578]
[1744401183875,10.36481071,120.65,120.63,3.51354228]
[1744401184069,10.36481071,120.65,120.62,0.06041578]
[1744401184275,10.36481071,120.65,120.63,3.51369045]
[1744401184478,8.2937,120.63,120.62,0.06041578]
[1744401184668,39.7737,120.63,120.62,3.5736081]
[1744401186071,31.48,120.63,120.62,3.5736081]
[1744401186580,39.7737,120.63,120.62,3.5736081]
[1744401189077,41.7893521,120.63,120.57,2.0866]
[1744401189378,31.48,120.63,120.59,10.3093521]
[1744401189576,8.2954,120.61,120.59,10.3093521]
[1744401189782,31.48,120.63,120.59,10.3093521]
[1744401189973,0.06032373,120.62,120.6,0.0562251]
[1744401190880,8.2951,120.61,120.6,0.0562251]
[1744401191685,0.06032373,120.62,120.6,0.0562251]
[1744401192285,8.35502373,120.62,120.6,10.3655772]
[1744401192586,0.06032373,120.62,120.6,10.3655772]
[1744401192787,8.35502373,120.62,120.6,10.3655772]
[1744401193173,8.35502373,120.62,120.6,0.0562251]
[1744401194885,0.06032373,120.62,120.6,8.3519251]
[1744401200487,0.06032373,120.62,120.6,0.0562251]
[1744401200887,8.2951,120.61,120.6,0.0562251]
[1744401209697,0.06032373,120.62,120.6,0.0562251]
[1744401210297,8.35502373,120.62,120.6,8.3517251]
[1744401212498,8.2951,120.61,120.6,0.0562251]
[1744401214398,31.46,120.66,120.6,18.6655772]
[1744401214698,8.2904,120.68,120.65,18.6013521]
[1744401214899,31.46,120.69,120.65,18.6013521]
[1744401215201,8.2909,120.68,120.65,18.6013521]
[1744401215401,8.34759951,120.68,120.65,18.65768545]
[1744401216307,0.05669951,120.68,120.66,18.6004521]
[1744401217203,8.34699951,120.68,120.66,10.3093521]
[1744401217599,8.34699951,120.68,120.65,8.34833335]
[1744401217795,8.34699951,120.68,120.65,18.65768545]
[1744401218007,0.05669951,120.68,120.66,8.2916]
[1744401219398,0.05669951,120.68,120.67,8.291]
[1744401219599,0.05669951,120.68,120.66,10.3093521]
[1744401220001,0.05669951,120.68,120.67,8.291]
[1744401220303,0.05669951,120.68,120.65,0.05633335]
[1744401220503,0.05669951,120.68,120.65,8.34803335]
[1744401220799,0.05669951,120.68,120.65,18.65738545]
[1744401221103,8.34729951,120.68,120.66,8.2916]
[1744401221296,0.05669951,120.68,120.66,10.3093521]
[1744401221802,0.05669951,120.68,120.66,18.6007521]
[1744401223199,0.05669951,120.68,120.65,10.36568545]
[1744401223702,8.34749951,120.68,120.65,18.65798545]
[1744401223891,0.05669951,120.68,120.65,10.36568545]
[1744401224299,8.34699951,120.68,120.65,18.65748545]
[1744401226197,0.05669951,120.68,120.66,8.2916]
[1744401226395,0.05669951,120.68,120.65,10.36568545]
[1744401226396,0.05669951,120.68,120.67,10.3093521]
[1744401227201,0.05669951,120.68,120.67,18.6003521]
[1744401228902,0.05669951,120.68,120.66,18.6006521]
[1744401230005,8.34699951,120.68,120.65,80.65768545]
[1744401230301,8.34699951,120.68,120.65,18.65768545]
[1744401231310,8.2912,120.67,120.65,0.05633335]
[1744401231704,0.05669951,120.68,120.65,0.05633335]
[1744401232506,8.2913,120.67,120.65,0.05633335]
[1744401233110,8.2913,120.67,120.65,8.34863335]
[1744401233409,8.2913,120.67,120.65,18.65798545]
[1744401233711,0.05669951,120.68,120.67,8.291]
[1744401235010,0.05669951,120.68,120.66,18.6006521]
[1744401235310,0.05669951,120.68,120.66,10.3093521]
[1744401235610,0.05669951,120.68,120.67,8.291]
[1744401236812,0.05669951,120.68,120.66,10.3093521]
[1744401236813,0.05669951,120.68,120.66,18.6006521]
[1744401237112,0.05669951,120.68,120.66,10.3093521]
[1744401238012,0.05669951,120.68,120.67,8.291]
[1744401239012,0.05669951,120.68,120.66,18.6007521]
[1744401241511,31.42,120.74,120.67,10.3093521]
[1744401241711,31.42,120.74,120.72,10.3093521]
[1744401242018,39.7065,120.74,120.71,8.2879]
[1744401242208,31.42,120.74,120.71,10.3093521]
[1744401242707,31.48134781,120.74,120.71,10.36488939]
[1744401243110,31.48134781,120.74,120.72,8.2875]
[1744401244717,31.48134781,120.74,120.72,18.5968521]
[1744401248116,31.48134781,120.74,120.71,0.05553729]
[1744401248117,596.78,120.81,120.73,10.3093521]
[1744401248318,628.16,120.81,120.77,10.3093521]
[1744401248713,628.16,120.81,120.77,18.5934521]
[1744401249218,0.05824059,120.8,120.78,0.05580004]
[1744401250322,0.05824059,120.8,120.79,10.3093521]
[1744401251124,0.05824059,120.8,120.79,18.5921521]
[1744401251721,31.38,120.84,120.81,8.2808]
[1744401252024,31.38,120.84,120.81,18.5901521]
[1744401252324,10.3093521,120.82,120.77,10.3093521]
[1744401252519,31.38,120.81,120.77,10.3093521]
[1744401252831,31.38,120.81,120.78,10.37124119]
[1744401253426,31.38,120.81,120.79,10.3093521]
[1744401254526,31.38,120.81,120.78,18.65414119]
[1744401255527,31.38,120.81,120.79,10.3093521]
[1744401256628,31.38,120.81,120.8,18.5914521]
[1744401256818,31.38,120.81,120.8,10.3093521]
[1744401259530,31.38,120.81,120.79,18.5917521]
[1744401261133,31.38,120.81,120.8,10.3093521]
[1744401264136,31.36,120.84,120.8,10.3093521]
[1744401264536,31.36,120.84,120.81,0.05820137]
[1744401264735,41.6693521,120.84,120.81,0.05820137]
[1744401264937,10.3093521,120.82,120.77,10.3093521]
[1744401265135,31.36,120.81,120.77,10.3093521]
[1744401265530,31.36,120.81,120.77,18.5931521]
[1744401265937,0.0601321,120.8,120.78,0.05861216]
[1744401266636,10.3694842,120.8,120.78,0.05861216]
[1744401267436,10.3093521,120.79,120.74,18.5951521]
[1744401267641,31.36,120.78,120.74,18.5951521]
[1744401267942,41.6693521,120.78,120.74,18.5951521]
[1744401268642,0.05919884,120.77,120.75,0.05434369]
[1744401270845,0.05919884,120.77,120.75,10.36369579]
[1744401271147,0.05919884,120.77,120.75,0.05434369]
[1744401273248,0.05919884,120.77,120.75,10.36369579]
[1744401273841,0.05919884,120.77,120.75,0.05434369]
[1744401278851,0.05919884,120.77,120.75,10.36369579]
[1744401279245,0.05919884,120.77,120.75,0.05434369]
[1744401279646,0.05919884,120.77,120.75,10.36369579]
[1744401279847,0.05919884,120.77,120.75,18.64899579]
[1744401280245,4.5455,120.83,120.76,10.3093521]
[1744401280548,30.84846738,120.87,120.82,10.3093521]
[1744401280743,29.40735424,120.87,120.79,31.36]
[1744401280943,29.40735424,120.87,120.86,10.3093521]
[1744401281347,78.41961131,120.88,120.86,10.3093521]